fUSD/lending_fUSD_20250321
["ID","MTS","AMOUNT","RATE_DAILY","PERIOD"]
[356508989,1742586648307,-767.21,0.00046575,120]
[356508990,1742586648326,-500.0,0.00046575,120]
[356508991,1742586648339,-500.0,0.00046575,120]
[356508992,1742586648349,-500.0,0.00046575,120]
[356508993,1742586648359,-500.0,0.00046575,120]
[356508994,1742586648369,-624.11,0.00046575,120]
[356508995,1742586648379,-500.0,0.00046575,120]
[356508996,1742586648390,-500.0,0.00046575,120]
[356508997,1742586648399,-500.0,0.00046575,120]
[356508998,1742586648409,-500.0,0.00046575,120]
[356508999,1742586648419,-500.0,0.00046575,120]
[356509000,1742586648429,-500.0,0.00046575,120]
[356509001,1742586648439,-500.0,0.00046575,120]
[356509002,1742586648449,-500.0,0.00046575,120]
[356509003,1742586648462,-500.0,0.00046575,120]
[356509004,1742586648472,-500.0,0.00046575,120]
[356509005,1742586648482,-500.0,0.00046575,120]
[356509006,1742586648492,-500.0,0.00046575,120]
[356509007,1742586648503,-500.0,0.00046575,120]
[356509008,1742586648514,-500.0,0.00046575,120]
[356509009,1742586648524,-500.0,0.00046575,120]
[356509010,1742586648536,-500.0,0.00046575,120]
[356509011,1742586648546,-500.0,0.00046575,120]
[356509012,1742586648556,-500.0,0.00046575,120]
[356509013,1742586648566,-500.0,0.00046575,120]
[356509014,1742586648575,-500.0,0.00046575,120]
[356509015,1742586648585,-597.90706078,0.00046575,120]
[356509016,1742586648595,-500.0,0.00046575,120]
[356509017,1742586648605,-500.0,0.00046575,120]
[356509018,1742586648615,-500.0,0.00046575,120]
[356509019,1742586648626,-500.0,0.00046575,120]
[356509020,1742586648635,-500.0,0.00046575,120]
[356509021,1742586648645,-500.0,0.00046575,120]
[356509022,1742586648655,-601.51732378,0.00046575,120]
[356509023,1742586648664,-500.0,0.00046575,120]
[356509024,1742586648674,-500.0,0.00046575,120]
[356509025,1742586648684,-500.0,0.00046575,120]
[356509026,1742586648694,-500.0,0.00046575,120]
[356509027,1742586648703,-500.0,0.00046575,120]
[356509028,1742586648713,-500.0,0.00046575,120]
[356509029,1742586648723,-500.0,0.00046575,120]
[356509030,1742586648732,-500.0,0.00046575,120]
[356509031,1742586648742,-500.0,0.00046575,120]
[356509032,1742586648751,-500.0,0.00046575,120]
[356509033,1742586648761,-500.0,0.00046575,120]
[356509034,1742586648771,-500.0,0.00046575,120]
[356509035,1742586648781,-500.0,0.00046575,120]
[356509036,1742586648791,-500.0,0.00046575,120]
[356509037,1742586648801,-500.0,0.00046575,120]
[356509038,1742586648810,-500.0,0.00046575,120]
[356509039,1742586648819,-500.0,0.00046575,120]
[356509040,1742586648829,-500.0,0.00046575,120]
[356509041,1742586648839,-163.9783268,0.00046575,120]
[356509042,1742586648848,-500.0,0.00046575,120]
[356509043,1742586648858,-500.0,0.00046575,120]
[356509044,1742586648869,-500.0,0.00046575,120]
[356509045,1742586648879,-500.0,0.00046575,120]
[356509046,1742586648888,-522.43061773,0.00046575,120]
[356509047,1742586648898,-500.0,0.00046575,120]
[356509048,1742586648908,-500.0,0.00046575,120]
[356509049,1742586648917,-500.0,0.00046575,120]
[356509050,1742586648927,-500.0,0.00046575,120]
[356509051,1742586648937,-500.0,0.00046575,120]
[356509052,1742586648946,-500.0,0.00046575,120]
[356509053,1742586648955,-605.49,0.00046575,120]
[356509054,1742586648965,-500.0,0.00046575,120]
[356509055,1742586648975,-500.0,0.00046575,120]
[356509056,1742586648985,-500.0,0.00046575,120]
[356509057,1742586648995,-500.0,0.00046575,120]
[356509058,1742586649004,-500.0,0.00046575,120]
[356509059,1742586649014,-500.0,0.00046575,120]
[356509060,1742586649024,-500.0,0.00046575,120]
[356509061,1742586649034,-500.0,0.00046575,120]
[356509062,1742586649044,-500.0,0.00046575,120]
[356509063,1742586649053,-500.0,0.00046575,120]
[356509064,1742586649063,-500.0,0.00046575,120]
[356509065,1742586649073,-500.0,0.00046575,120]
[356509066,1742586649082,-500.0,0.00046575,120]
[356509067,1742586649092,-500.0,0.00046575,120]
[356509068,1742586649101,-520.84171353,0.00046575,120]
[356509069,1742586649111,-500.0,0.00046575,120]
[356509070,1742586649121,-962.45,0.00046575,120]
[356509071,1742586649132,-500.0,0.00046575,120]
[356509072,1742586649142,-500.0,0.00046575,120]
[356509073,1742586649151,-500.0,0.00046575,120]
[356509074,1742586649161,-524.44012526,0.00046575,120]
[356509075,1742586649171,-500.0,0.00046575,120]
[356509076,1742586649181,-500.0,0.00046575,120]
[356509077,1742586649190,-500.0,0.00046575,120]
[356509078,1742586649199,-500.0,0.00046575,120]
[356509079,1742586649209,-500.0,0.00046575,120]
[356509080,1742586649218,-500.0,0.00046575,120]
[356509081,1742586649228,-500.0,0.00046575,120]
[356509082,1742586649238,-500.0,0.00046575,120]
[356509083,1742586649247,-500.0,0.00046575,120]
[356509084,1742586649256,-500.0,0.00046575,120]
[356509085,1742586649265,-500.0,0.00046575,120]
[356509086,1742586649274,-500.0,0.00046575,120]
[356509087,1742586649283,-500.0,0.00046575,120]
[356509088,1742586649293,-500.0,0.00046575,120]
[356509089,1742586649302,-500.0,0.00046575,120]
[356509090,1742586649311,-500.0,0.00046575,120]
[356509091,1742586649321,-500.0,0.00046575,120]
[356509092,1742586649330,-1514.11,0.00046575,120]
[356509093,1742586649339,-500.0,0.00046575,120]
[356509094,1742586649349,-500.0,0.00046575,120]
[356509095,1742586649358,-848.29,0.00046575,120]
[356509096,1742586649367,-500.0,0.00046575,120]
[356509097,1742586649377,-500.0,0.00046575,120]
[356509098,1742586649387,-500.0,0.00046575,120]
[356509099,1742586649396,-500.0,0.00046575,120]
[356509100,1742586649406,-500.0,0.00046575,120]
[356509101,1742586649415,-500.0,0.00046575,120]
[356509102,1742586649426,-500.0,0.00046575,120]
[356509103,1742586649435,-500.0,0.00046575,120]
[356509104,1742586649444,-500.0,0.00046575,120]
[356509105,1742586649454,-500.0,0.00046575,120]
[356509106,1742586649465,-500.0,0.00046575,120]
[356509107,1742586649475,-500.0,0.00046575,120]
[356509108,1742586649484,-500.0,0.00046575,120]
[356509109,1742586649495,-500.0,0.00046575,120]
[356509110,1742586649505,-500.0,0.00046575,120]
[356509111,1742586649515,-500.0,0.00046575,120]
[356509112,1742586649524,-500.0,0.00046575,120]
[356509113,1742586649536,-500.0,0.00046575,120]
[356509114,1742586649546,-500.0,0.00046575,120]
[356509115,1742586649555,-578.64821033,0.00046575,120]
[356509116,1742586649565,-500.0,0.00046575,120]
[356509117,1742586649575,-500.0,0.00046575,120]
[356509118,1742586649585,-500.0,0.00046575,120]
[356509119,1742586649594,-500.0,0.00046575,120]
[356509120,1742586649605,-500.0,0.00046575,120]
[356509121,1742586649614,-514.013054,0.00046575,120]
[356509122,1742586649624,-500.0,0.00046575,120]
[356509123,1742586649634,-500.0,0.00046575,120]
[356509124,1742586649643,-500.0,0.00046575,120]
[356509125,1742586649653,-500.0,0.00046575,120]
[356509126,1742586649662,-500.0,0.00046575,120]
[356509127,1742586649672,-500.0,0.00046575,120]
[356509128,1742586649681,-500.0,0.00046575,120]
[356509129,1742586649691,-816.83,0.00046575,120]
[356509130,1742586649700,-500.0,0.00046575,120]
[356509131,1742586649709,-517.41941907,0.00046575,120]
[356509132,1742586649719,-500.0,0.00046575,120]
[356509133,1742586649728,-500.0,0.00046575,120]
[356509134,1742586649737,-500.0,0.00046575,120]
[356509135,1742586649746,-500.0,0.00046575,120]
[356509136,1742586649756,-500.0,0.00046575,120]
[356509137,1742586649765,-500.0,0.00046575,120]
[356509138,1742586649774,-500.0,0.00046575,120]
[356509139,1742586649783,-500.0,0.00046575,120]
[356509140,1742586649793,-500.0,0.00046575,120]
[356509141,1742586649803,-500.0,0.00046575,120]
[356509142,1742586649812,-500.0,0.00046575,120]
[356509143,1742586649823,-500.0,0.00046575,120]
[356509144,1742586649832,-500.0,0.00046575,120]
[356509145,1742586649842,-512.69,0.00046575,120]
[356509146,1742586649851,-520.82,0.00046575,120]
[356509147,1742586649861,-500.0,0.00046575,120]
[356509148,1742586649870,-500.0,0.00046575,120]
[356509149,1742586649879,-500.0,0.00046575,120]
[356509150,1742586649889,-278.79373013,0.00046575,120]
[356509151,1742586649898,-567.73791996,0.00046575,120]
[356509152,1742586649907,-584.87,0.00046575,120]
[356509153,1742586649917,-500.0,0.00046575,120]
[356509154,1742586649926,-500.0,0.00046575,120]
[356509155,1742586649935,-500.0,0.00046575,120]
[356509156,1742586649944,-500.0,0.00046575,120]
[356509157,1742586649954,-500.0,0.00046575,120]
[356509158,1742586649964,-500.0,0.00046575,120]
[356509159,1742586649974,-500.0,0.00046575,30]
[356509160,1742586649983,-500.0,0.00046575,120]
[356509161,1742586649992,-500.0,0.00046575,120]
[356509162,1742586650002,-500.0,0.00046575,120]
[356509163,1742586650011,-635.31,0.00046575,120]
[356509164,1742586650021,-500.0,0.00046575,120]
[356509165,1742586650029,-500.0,0.00046575,120]
[356509166,1742586650039,-500.0,0.00046575,120]
[356509167,1742586650049,-500.0,0.00046575,120]
[356509168,1742586650059,-500.0,0.00046575,120]
[356509169,1742586650069,-500.0,0.00046575,120]
[356509170,1742586650079,-500.0,0.00046575,120]
[356509171,1742586650088,-500.0,0.00046575,120]
[356509172,1742586650098,-500.0,0.00046575,120]
[356509173,1742586650107,-517.73256602,0.00046575,120]
[356509174,1742586650117,-500.0,0.00046575,120]
[356509175,1742586650126,-500.0,0.00046575,120]
[356509176,1742586650135,-500.0,0.00046575,120]
[356509177,1742586650145,-500.0,0.00046575,120]
[356509178,1742586650155,-500.0,0.00046575,120]
[356509179,1742586650164,-500.0,0.00046575,120]
[356509180,1742586650173,-500.0,0.00046575,120]
[356509181,1742586650183,-500.0,0.00046575,120]
[356509182,1742586650193,-498.3473,0.00046575,2]
[356509183,1742586650202,-517.96509241,0.00046575,120]
[356509184,1742586650212,-297.87193865,0.00046575,120]
[356509185,1742586650222,-500.0,0.00046575,120]
[356509186,1742586650231,-720.81,0.00046575,120]
[356509187,1742586650240,-500.0,0.00046575,120]
[356509188,1742586650250,-500.0,0.00046575,120]
[356509189,1742586650259,-500.0,0.00046575,120]
[356509190,1742586650268,-500.0,0.00046575,120]
[356509191,1742586650278,-500.0,0.00046575,120]
[356509192,1742586650287,-500.0,0.00046575,120]
[356509193,1742586650296,-5000.0,0.00046575,120]
[356509194,1742586650306,-500.0,0.00046575,120]
[356509195,1742586650315,-500.0,0.00046575,120]
[356509196,1742586650325,-500.0,0.00046575,120]
[356509197,1742586650335,-500.0,0.00046575,120]
[356509198,1742586650344,-748.16,0.00046575,120]
[356509199,1742586650354,-500.0,0.00046575,120]
[356509200,1742586650363,-504.46700708,0.00046575,120]
[356509201,1742586650373,-684.3703722,0.00046575,28]
[356509202,1742586650382,-500.0,0.00046575,120]
[356509203,1742586650392,-500.0,0.00046575,120]
[356509204,1742586650402,-500.0,0.00046575,120]
[356509205,1742586650411,-528.15164968,0.00046575,120]
[356509206,1742586650421,-500.0,0.00046575,120]
[356509207,1742586650431,-997.76,0.00046575,120]
[356509208,1742586650440,-500.0,0.00046575,60]
[356509209,1742586650449,-500.0,0.00046575,120]
[356509210,1742586650461,-500.78,0.00046575,120]
[356509211,1742586650470,-500.0,0.00046575,120]
[356509212,1742586650480,-500.0,0.00046575,120]
[356509213,1742586650489,-500.0,0.00046575,120]
[356509214,1742586650499,-500.0,0.00046575,120]
[356509215,1742586650509,-500.0,0.00046575,120]
[356509216,1742586650518,-500.0,0.00046575,120]
[356509217,1742586650528,-500.0,0.00046575,2]
[356509218,1742586650539,-500.0,0.00046575,120]
[356509219,1742586650548,-500.0,0.00046575,120]
[356509220,1742586650557,-500.0,0.00046575,120]
[356509221,1742586650567,-500.0,0.00046575,120]
[356509222,1742586650577,-500.0,0.00046575,120]
[356509223,1742586650587,-500.0,0.00046575,120]
[356509224,1742586650596,-500.0,0.00046575,120]
[356509225,1742586650605,-500.0,0.00046575,120]
[356509226,1742586650615,-500.0,0.00046575,120]
[356509227,1742586650625,-754.7,0.00046575,120]
[356509228,1742586650634,-500.0,0.00046575,120]
[356509229,1742586650644,-500.0,0.00046575,120]
[356509230,1742586650654,-507.98340457,0.00046575,120]
[356509231,1742586650663,-538.752576,0.00046575,120]
[356509232,1742586650673,-500.0,0.00046575,120]
[356509233,1742586650683,-500.0,0.00046575,120]
[356509234,1742586650692,-500.0,0.00046575,120]
[356509235,1742586650701,-500.0,0.00046575,120]
[356509236,1742586650711,-500.0,0.00046575,2]
[356509237,1742586650720,-500.0,0.00046575,120]
[356509238,1742586650730,-252.38703167,0.00046575,120]
[356509239,1742586650740,-500.0,0.00046575,120]
[356509240,1742586650749,-837.21,0.00046575,120]
[356509241,1742586650759,-500.0,0.00046575,120]
[356509242,1742586650768,-500.0,0.00046575,120]
[356509243,1742586650777,-1936.56,0.00046575,120]
[356509244,1742586650787,-500.0,0.00046575,120]
[356509245,1742586650797,-2608.56,0.00046575,120]
[356509246,1742586650807,-500.0,0.00046575,120]
[356509247,1742586650816,-194.145991,0.00046575,120]
[356509248,1742586650825,-500.0,0.00046575,120]
[356509249,1742586650834,-500.0,0.00046575,120]
[356509250,1742586651000,-653.2,0.00046575,120]
[356509251,1742586651028,-500.0,0.00046575,120]
[356509252,1742586651038,-518.60965832,0.00046575,120]
[356509253,1742586651047,-500.0,0.00046575,120]
[356509254,1742586651056,-500.0,0.00046575,120]
[356509255,1742586651066,-500.0,0.00046575,120]
[356509256,1742586651075,-500.0,0.00046575,120]
[356509257,1742586651084,-500.0,0.00046575,120]
[356509258,1742586651093,-500.0,0.00046575,120]
[356509259,1742586651102,-500.0,0.00046575,120]
[356509260,1742586651112,-500.0,0.00046575,120]
[356509261,1742586651122,-500.0,0.00046575,120]
[356509262,1742586651130,-500.0,0.00046575,120]
[356509263,1742586651140,-504.44996677,0.00046575,120]
[356509264,1742586651149,-500.0,0.00046575,120]
[356509265,1742586651159,-500.0,0.00046575,120]
[356509266,1742586651168,-500.0,0.00046575,120]
[356509267,1742586651178,-500.0,0.00046575,120]
[356509268,1742586651188,-577.34,0.00046575,120]
[356509269,1742586651199,-506.46214387,0.00046575,120]
[356509270,1742586651208,-498.54451081,0.00046575,120]
[356509271,1742586651218,-500.0,0.00046575,120]
[356509272,1742586651228,-500.0,0.00046575,120]
[356509273,1742586651239,-508.4660038,0.00046575,120]
[356509274,1742586651248,-500.0,0.00046575,120]
[356509275,1742586651257,-500.0,0.00046575,120]
[356509276,1742586651267,-527.13876304,0.00046575,120]
[356509277,1742586651276,-500.0,0.00046575,120]
[356509278,1742586651285,-500.0,0.00046575,120]
[356509279,1742586651294,-491.2323453,0.00046575,120]
[356509280,1742586651303,-506.42943891,0.00046575,120]
[356509281,1742586651313,-500.0,0.00046575,120]
[356509282,1742586651322,-561.99179236,0.00046575,120]
[356509283,1742586651331,-500.0,0.00046575,120]
[356509284,1742586651340,-500.0,0.00046575,120]
[356509285,1742586651349,-661.6,0.00046575,120]
[356509286,1742586651358,-500.0,0.00046575,120]
[356509287,1742586651368,-500.0,0.00046575,120]
[356509288,1742586651377,-500.0,0.00046575,120]
[356509289,1742586651387,-500.0,0.00046575,120]
[356509290,1742586651396,-500.0,0.00046575,120]
[356509291,1742586651405,-500.0,0.00046575,120]
[356509292,1742586651415,-500.0,0.00046575,120]
[356509293,1742586651424,-500.0,0.00046575,120]
[356509294,1742586651433,-500.0,0.00046575,120]
[356509295,1742586651443,-598.37,0.00046575,120]
[356509296,1742586651454,-277.41788306,0.00046575,120]
[356509297,1742586651468,-753.47,0.00046575,120]
[356509298,1742586651477,-500.0,0.00046575,120]
[356509299,1742586651486,-500.0,0.00046575,120]
[356509300,1742586651495,-2901.54,0.00046575,120]
[356509301,1742586651506,-500.0,0.00046575,120]
[356509302,1742586651515,-500.0,0.00046575,120]
[356509303,1742586651524,-500.0,0.00046575,120]
[356509304,1742586651534,-576.5107091,0.00046575,7]
[356509538,1742587837872,-256.36,0.00026849,2]
[356509540,1742587837881,-256.36,0.00032646,2]
[356509542,1742587837894,-256.36,0.00038443,2]
[356509544,1742587837904,-503.42686398,0.00043712,120]
[356509546,1742587837913,-367.536038,0.00044,57]
[356509548,1742587837922,-500.0,0.00044,2]
[356509550,1742587837931,-256.36,0.00044239,2]
[356509552,1742587837942,-902.98454565,0.00044493,2]
[356509554,1742587837957,-1024.7804435,0.00044493,2]
[356509556,1742587837966,-500.0,0.00044658,120]
[356509558,1742587837976,-500.0,0.00044685,120]
[356509560,1742587837986,-214.24,0.00044885,2]
[356509562,1742587837995,-917.1837,0.000449,120]
[356509565,1742587838005,-206.93189412,0.000449,10]
[356509567,1742587838014,-510.26,0.00044918,2]
[356509568,1742587838023,-214.24,0.00044979,2]
[356509570,1742587838032,-250.0,0.00044993,2]
[356509573,1742587838042,-1322.79077856,0.00044999,60]
[356509575,1742587838051,-214.24,0.00045074,2]
[356509577,1742587838061,-500.0,0.00045111,2]
[356509579,1742587838070,-177.15586527,0.00045138,2]
[356509592,1742587840005,-7489.04413473,0.00045138,2]
[356509593,1742587840015,-214.24,0.00045168,2]
[356509594,1742587840025,-153.4656894,0.00045177,4]
[356509595,1742587840034,-214.24,0.00045263,2]
[356509596,1742587840043,-291.19,0.00045293,2]
[356509597,1742587840053,-150.0,0.00045325,2]
[356509598,1742587840063,-214.24,0.00045357,2]
[356509599,1742587840073,-754.9,0.0004538,2]
[356509600,1742587840082,-214.24,0.00045452,2]
[356509601,1742587840092,-200.0,0.00045485,2]
[356509602,1742587840102,-214.24,0.00045546,2]
[356509603,1742587840111,-168.91,0.00045571,2]
[356509604,1742587840121,-1000.0,0.0004558,2]
[356509605,1742587840131,-214.24,0.00045641,2]
[356509606,1742587840141,-214.24,0.00045735,2]
[356509607,1742587840151,-150.0,0.00045777,4]
[356509608,1742587840161,-491.73,0.00045778,30]
[356509609,1742587840170,-257.12,0.00045778,30]
[356509610,1742587840180,-160.17,0.00045778,30]
[356509611,1742587840190,-163.95,0.00045778,30]
[356509612,1742587840199,-715.91,0.00045778,30]
[356509613,1742587840209,-50.2461011,0.00045778,30]
[356509614,1742587840458,-255.8238989,0.00045778,30]
[356509615,1742587840467,-150.0,0.00045778,30]
[356509616,1742587840479,-442.12,0.00045778,30]
[356509617,1742587840489,-150.0,0.00045778,30]
[356509618,1742587840498,-442.12,0.00045778,30]
[356509619,1742587840508,-150.0,0.00045778,30]
[356509620,1742587840518,-150.0,0.00045778,30]
[356509621,1742587840527,-214.24,0.0004583,2]
[356509622,1742587840537,-214.24,0.00045924,2]
[356509623,1742587840546,-268.21568498,0.00046,120]
[356509630,1742587846170,-1474.91137393,0.00046,120]
[356509653,1742589032073,-209.37,0.00026849,2]
[356509655,1742589032083,-607.49,0.00043571,2]
[356509657,1742589032093,-23.03,0.00044685,120]
[356509658,1742589032104,-476.97,0.00044685,120]
[356509659,1742589032113,-250.0,0.00045113,2]
[356509660,1742589032123,-153.4656894,0.00045177,4]
[356509661,1742589032132,-150.0,0.00045275,2]
[356509662,1742589032141,-173.49,0.00045388,120]
[356509663,1742589032151,-238.44179994,0.00045513,2]
[356509664,1742589032184,-559.30022842,0.00045513,2]
[356509665,1742589032196,-202.25797164,0.00045513,2]
[356509666,1742589032205,-429.657273,0.0004559,2]
[356509667,1742589032214,-500.0,0.00045657,120]
[356509668,1742589032223,-84.41811197,0.00045657,2]
[356509669,1742589032299,-1467.38419379,0.00045657,2]
[356509670,1742589032310,-1183.98360874,0.00045657,2]
[356509961,1742589038102,-1015.67594153,0.00045657,2]
[356509964,1742589040301,-987.7,0.00045657,2]
[356509965,1742589040575,-123.85814397,0.00045657,2]
[356509966,1742589040584,-365.06535053,0.00045712,120]
[356509967,1742589040595,-137.26755328,0.00045712,120]
[356509968,1742589040604,-157.457,0.000458,2]
[356509969,1742589040614,-607.49,0.00045835,2]
[356509970,1742589040623,-300.0,0.00045898,5]
[356509971,1742589040632,-102.12423498,0.00045899,75]
[356509990,1742589892540,-163.29,0.00026849,2]
[356509991,1742589892568,-154.42,0.000335,31]
[356509992,1742589892594,-154.42,0.000398,31]
[356509993,1742589892620,-154.42,0.000398,31]
[356509994,1742589892644,-500.0,0.0004063,2]
[356509995,1742589892669,-636.88,0.00042902,2]
[356509996,1742589892691,-150.13103108,0.00044592,2]
[356509997,1742589892714,-184.19,0.00044692,2]
[356509998,1742589892739,-157.64,0.0004482,2]
[356509999,1742589892765,-370.22,0.00044945,2]
[356510000,1742589892789,-289.0,0.00045,90]
[356510001,1742589892816,-184.75,0.00045117,120]
[356510002,1742589892842,-150.0,0.00045126,2]
[356510003,1742589892866,-300.0,0.00045165,5]
[356510004,1742589892890,-4935.45,0.00045166,2]
[356510005,1742589892915,-636.88,0.00045166,2]
[356510006,1742589892939,-153.1363037,0.00045177,4]
[356510007,1742589892962,-162.3,0.00045184,2]
[356510008,1742589892986,-150.0,0.00045294,2]
[356510009,1742589893010,-350.0,0.00045294,2]
[356510010,1742589893035,-353.89886989,0.00045352,38]
[356510011,1742589893061,-39708.97379533,0.00045352,38]
[356510012,1742589990128,-150.0,0.00034548,10]
[356510013,1742589990158,-250.0,0.0004518,2]
[356510014,1742589990188,-74.49701053,0.00045342,2]
[356510018,1742590232239,-153.0,0.0002465,2]
[356510019,1742590232249,-150.0,0.0004482,2]
[356510020,1742590232258,-1000.0,0.00045026,2]
[356510021,1742590232267,-797.000002,0.00045043,2]
[356510022,1742590232298,-363.00845049,0.00045043,2]
[356510023,1742590232309,-639.1315495,0.00045043,2]
[356510024,1742590232461,-908.97359572,0.00045043,2]
[356510025,1742590232520,-478.31588386,0.00045043,2]
[356510207,1742590238237,-518.99390399,0.00045043,2]
[356510208,1742590238248,-7902.10556947,0.00045043,2]
[356510209,1742590238259,-5105.70874728,0.00045043,2]
[356510210,1742590238346,-1292.67018,0.00045043,2]
[356510211,1742590238357,-298.0,0.00045043,2]
[356510212,1742590238468,-1394.81211769,0.00045043,2]
[356510213,1742590238478,-191.65,0.00045081,120]
[356510214,1742590238487,-154.58,0.00045152,2]
[356510215,1742590238496,-2078.58255182,0.00045342,2]
[356510216,1742590238507,-2481.16289941,0.00045342,2]
[356510219,1742590240442,-4224.09306398,0.00045342,2]
[356510220,1742590240453,-834.80236144,0.00045342,2]
[356510229,1742590243683,-4.66908919,0.00045342,2]
[356510230,1742590243714,-353.74397833,0.00045342,2]
[356510232,1742590638200,-150.0,0.00044,57]
[356510233,1742590638226,-173.49,0.00044968,120]
[356510234,1742590638251,-253.0,0.00045,90]
[356510235,1742590638275,-1500.0,0.00045066,2]
[356510236,1742590638300,-154.32099,0.00045342,78]
[356510237,1742590638339,-155.84,0.0004541,2]
[356510238,1742590638368,-500.0,0.00045657,120]
[356510239,1742590638395,-500.0,0.00045685,120]
[356510240,1742590638421,-253.0,0.00045685,90]
[356510241,1742590638448,-524.78373348,0.00045712,120]
[356510242,1742590638474,-151.4083,0.000458,2]
[356510243,1742590638500,-459.8234,0.000458,2]
[356510244,1742590638526,-4617.3253,0.000458,2]
[356510245,1742590638551,-1524.0,0.000458,60]
[356510246,1742590638578,-2500.0,0.000458,2]
[356510247,1742590638605,-296.432,0.00045835,75]
[356510248,1742590638632,-8884.22689734,0.00045889,2]
[356510249,1742590638660,-671.4363341,0.00045899,30]
[356510250,1742590638687,-176.94943495,0.00045899,38]
[356510251,1742590638718,-26553.96361013,0.000459,2]
[356510252,1742590742553,2165.93288484,0.00031272,60]
[356510275,1742590769479,-154.46,0.000335,31]
[356510276,1742590769506,-154.46,0.000398,31]
[356510277,1742590769532,-154.46,0.000398,31]
[356510278,1742590769555,-237.146,0.000459,75]
[356510279,1742590769580,-17300.0,0.000459,120]
[356510280,1742590769603,-11786.17404251,0.000459,120]
[356510281,1742590769628,-8334.03242776,0.00046,120]
[356510282,1742590769655,-154.46,0.000461,39]
[356510283,1742590769681,-154.46,0.000461,39]
[356510284,1742590769704,-176.94943494,0.00046259,38]
[356510285,1742590769730,-85604.61440084,0.00046259,38]
[356510286,1742590769754,-442.6846105,0.00046474,120]
[356510287,1742590769778,-230.55850908,0.00046474,120]
[356510288,1742590769802,-500.0,0.00046474,120]
[356510289,1742590769826,-605.18483128,0.00046474,120]
[356510290,1742590769849,-88888.0,0.00046475,120]
[356510291,1742590769872,-3809.28314369,0.0004649,120]
[356510292,1742590769896,-1799.41499375,0.000465,120]
[356510293,1742590769920,-500.0,0.00046574,120]
[356510294,1742590769942,-500.0,0.00046575,120]
[356510295,1742590769964,-500.0,0.00046575,120]
[356510296,1742590769987,-500.0,0.00046575,120]
[356510297,1742590770010,-500.0,0.00046575,120]
[356510298,1742590770034,-500.0,0.00046575,120]
[356510299,1742590770057,-500.0,0.00046575,120]
[356510300,1742590770084,-500.0,0.00046575,120]
[356510301,1742590770108,-500.0,0.00046575,120]
[356510302,1742590770133,-500.0,0.00046575,120]
[356510303,1742590770452,-500.0,0.00046575,120]
[356510304,1742590770477,-500.0,0.00046575,120]
[356510305,1742590770501,-500.0,0.00046575,120]
[356510306,1742590770524,-548.31473188,0.00046575,120]
[356510307,1742590770547,-500.0,0.00046575,120]
[356510308,1742590770570,-500.0,0.00046575,120]
[356510309,1742590770593,-499.87060746,0.00046575,120]
[356510310,1742590770617,-500.0,0.00046575,120]
[356510311,1742590770641,-508.39713348,0.00046575,120]